{"text_format":"3","workbook":"xlsx","n_sheets":1,"sheets":["BID SCHEDULE"],"not_rendered":{"defined_names":1},"read":"whole","date_system":"1900"}

{"sheet":"BID SCHEDULE","index":0,"n_rows":93,"n_cols":7,"rows_kept":93,"merged":[[0,2,0,3],[2,1,2,3],[3,1,3,3],[4,1,4,3],[5,1,5,3],[6,1,6,3],[7,1,7,3],[8,1,8,3],[39,1,39,3],[40,1,40,3],[41,1,41,3],[42,1,42,3],[43,1,43,3],[58,1,58,3],[59,1,59,3],[61,1,61,3],[63,1,63,3],[68,1,68,3],[85,1,85,3]]}
[null,"Name of Offeror as identified on the cover page:   "]
["Item #","Description",null,"Manufacturer","Labor Unit Price","Material Unit Price","ExtendedTotal"]
[null,"Per Outlet Location Pricing for Horizontal Cable Installation"]
[null,"A.\t Items # 1-12 include appropriate faceplate, labels on both ends and appropriate number of blank inserts"]
[null,"\nB.  All raceway is to be Panduit LD10 or equivalent with prior HCS approval (any changes require HCS Technology approval), qty. one 8-foot stick including one 2”x4” surface mount box and one drop-tile ceiling fitting. (all secured with appropriate wall anchors)"]
[null,"C.  Item # 13 includes Panduit CBX1IW-A surface mount box or equivalent with prior HCS approval and labels on both ends"]
[null,"D.  Items # 14-15 include jacks and labels on both ends and passing certification tests"]
[null,"E.  Plenum rated cable and properly rated tie-wraps shall be used to manage cables in ceiling space, Velcro in closets. Cable shall be manufactured by a Panduit Warranty Partner or equivalent with prior HCS approval. Utilize a distance of 250 feet from the outlet to the closet to calculate per drop pricing. For the purpose of this pricing, assume that sufficient cable support structure is available in ceiling areas."]
[null,"F.  Utilize the District approved materials in your pricing proposal.(See attachment)"]
["1a","1 cable in LD10 raceway ","Cat 6 Material",{"$nulls":3},{"$f":"+E10+F10","v":0}]
["1b","1 cable in LD10 raceway ","Cat 6a Material",{"$nulls":3},{"$f":"+E11+F11","v":0}]
["2a","2 cables in LD10 raceway","Cat 6 Material",{"$nulls":3},0]
["2b","2 cables in LD10 raceway ","Cat 6a Material",{"$nulls":3},0]
["3a","3 cables in LD10 raceway ","Cat 6 Material",{"$nulls":3},0]
["3b","3 cables in LD10 raceway ","Cat 6a Material",{"$nulls":3},0]
["4a","4 cables in LD10 raceway ","Cat 6 Material",{"$nulls":3},0]
["4b","4 cables in LD10 raceway ","Cat 6a Material",{"$nulls":3},0]
["5a","1 cable in (max 30') 1\" EMT ","Cat 6 Material",{"$nulls":3},0]
["5b","1 cable in (max 30') 1\" EMT","Cat 6a Material",{"$nulls":3},0]
["6a","2 cables in (max 30') 1\" EMT ","Cat 6 Material",{"$nulls":3},0]
["6b","2 cables in (max 30') 1\" EMT ","Cat 6a Material",{"$nulls":3},0]
["7a","3 cables in (max 30') 1\" EMT ","Cat 6 Material",{"$nulls":3},0]
["7b","3 cables in (max 30') 1\" EMT ","Cat 6a Material",{"$nulls":3},0]
["8a","4 cables in (max 30') 1\" EMT ","Cat 6 Material",{"$nulls":3},0]
["8b","4 cables in (max 30') 1\" EMT ","Cat 6a Material",{"$nulls":3},0]
["9a","1 cable fished into sheetrock wall with cut-in ring ","Cat 6 Material",{"$nulls":3},0]
["9b","1 cable fished into sheetrock wall with cut-in ring ","Cat 6a Material",{"$nulls":3},0]
["10a","2 cables fished into sheetrock wall with cut-in ring ","Cat 6 Material",{"$nulls":3},0]
["10b","2 cables fished into sheetrock wall with cut-in ring ","Cat 6a Material",{"$nulls":3},0]
["11a","3 cables fished into sheetrock wall with cut-in ring ","Cat 6 Material",{"$nulls":3},0]
["11b","3 cables fished into sheetrock wall with cut-in ring","Cat 6a Material",{"$nulls":3},0]
["12a","4 cables fished into sheetrock wall with cut-in ring ","Cat 6 Material",{"$nulls":3},0]
["12b","4 cables fished into sheetrock wall with cut-in ring ","Cat 6a Material",{"$nulls":3},0]
["13a","1 cable to above ceiling location in surface mount box, termination, labeling, termination ","Cat 6 Material",{"$nulls":3},0]
["13b","1 cable to above ceiling location in surface mount box, termination, labeling, termination ","Cat 6a Material",{"$nulls":3},0]
["14a","Above ceiling location category cable termination, labeling, termination Cat 6 Material","Cat 6 Material",{"$nulls":3},0]
["14b","Above ceiling location category cable termination, labeling, termination Cat 6a Material","Cat 6a Material",{"$nulls":3},0]
["15a","Standard wall/floor box location category cable termination and certification Cat 6 Material","Cat 6 Material",{"$nulls":3},0]
["15b","Standard wall/floor box location category cable termination and certification Cat 6a Material","Cat 6a Material",{"$nulls":3},0]
[null,"G.\t  Items # 16-17, Panduit brand Wire Managers or equivalent with prior HCS approval are to be priced as installed in a rack or cabinet."]
[null,"H.\t  Items #18-19, Panduit brand minicom connectivity jacks or equivalent with prior HCS approval are to be priced/installed. "]
[null,"I.  Items # 18-21 are to be quoted as installed in a rack or cabinet, not including any terminations. (NOT priced as material only)."]
[null,"J.  Items # 22-23 includes terminations, adapter plates and labeling for all stands on both ends and passing certification test"]
[null,"K.  Utilize the District approved materials in your pricing proposal."]
[16,"Horizontal wire manager - Qty. 1",null,"(Panduit – NCMH2 or equivalent with prior HCS approval)",null,null,0]
[17,"Vertical wire manager - Qty. 1",null,"(Panduit – WMPV45E/WMPVHC45E or equivalent with prior HCS approval)",null,null,0]
[18,"24 port patch panel - Qty. 1",null,"(Panduit – CPPL24WBLY or equivalent with prior HCS approval)",null,null,0]
[19,"48 port patch panel - Qty. 1",null,"(Panduit – CPPL48WBLY or equivalent with prior HCS approval) ",null,null,0]
[20,"1 RU fiber optic enclosure - Qty. 1",null,"(OCC RTC1U-3APB or equivalent with prior HCS approval)",null,null,0]
[21,"2 RU fiber optic enclosure - Qty. 1",null,"(OCC RTC2U-6APB or equivalent with prior HCS approval)",null,null,0]
[22,"6 strand OM3 terminations with LC connectors, tested, labeled",null,"(OCC MM LC Fusion Splice Cassettes FSCS312DLCP or equivalent with prior HCS approval)",null,null,0]
[23,"12 strand OM3 terminations with LC connectors, tested, labeled ",null,"(OCC MM LC Fusion Splice Cassettes FSCS312DLCP or equivalent with prior HCS approval)",null,null,0]
[24,"2\" wall mount J-hook (Panduit #JP2WP2B-L20)",null,"(Panduit # JP2WP2B-L20 or equivalent with prior HCS approval)",null,null,0]
[25,"2\" beam clamp mount J-hook (Panduit #JP2SBC50RB-L20)",null,"(Panduit # JP2SBC50RB-L20 or equivalent with prior HCS approval)",null,null,0]
[26,"1\" sleeve (STI#FS100) in block wall",null,"(STI # FS100 or equivalent with prior HCS approval) in block wall",null,null,0]
["26a","1\" sleeve (STI#FS100) in sheetrock wall",null,"(STI # FS100 or equivalent with prior HCS approval) in sheetrock wall",null,null,0]
[27,"2\" sleeve (STI#FS200) in block wall",null,"(STI # FS200 or equivalent with prior HCS approval) in block wall",null,null,0]
["27a","2\" sleeve (STI#FS200) in sheetrock wall",null,"(STI # FS200 or equivalent with prior HCS approval) in sheetrock wall",null,null,0]
[null,"Standard Telecommunication Closet Pricing (IDF)\n\nL.\tSample Standard Telecommunication Closet (IDF) consist of installation of the below. Include cabling, termination, labeling, certification testing and as-built drawings in pricing. Provide a sample as-built drawing with RFP response. An average cable run of 250 feet, assume all conduit and cable trays are provided by others. Utilize the District approved materials in your pricing proposal.\n1.\t(200) Cat 6 Data\n2.\t(40) Cat 6 Voice\n3.\t(30) Cat 6 TV/Projectors\n4.\t(50) 18/2 speakers terminated on Krone block in TC\n5.\t(30) Cat 6a Wireless\n6.\t(15) Cat 6 Cameras\n7.\t450 feet OM3 12 strands interlocking armor fiber optic cable\n8.\t450 feet 12 pair cable, terminated \n9.\t(2) 7-foot, 2 post racks\n10.\t20 feet, 18-inch-wide ladder rack\n11.\t(2) 18-inch wall angle supports\n12.\t(1) 18-inch triangle support bracket kit\n13.\t(2) 18-inch rack to runway mounting plate",{"$nulls":4},0]
[null,"M.\t Provide labor cost using above configuration for wiring of Standard Telecommunication Closet."]
["28a","Wiring on Standard Telecommunication closet - Labor",{"$nulls":4},0]
[null,"N.  Provide material cost using above configuration for wiring of Standard Telecommunication Closet. "]
["28b","Wiring on Standard Telecommunication closet - Materials",{"$nulls":4},0]
[null,"Miscellaneous Pricing"]
[null,"O.  Provide hourly rate for technician services. "]
[29,"Hourly rate for technician services",{"$nulls":4},0]
[null,"Total Eligible Erate",{"$nulls":4},{"$f":"SUM(G10:G66)","v":0}]
[]
[null,"P.  Provide labor cost for the below scenarios (all materials provided by HCS Technology)\n1.  Assume cameras, camera brackets, wireless access points and wireless access point brackets are delivered to site by HCS Technology"]
[30,"Install new ceiling tile mounted camera.  ",{"$nulls":4},{"$f":"+E70+F70","v":0}]
[31,"Install new wall mount bracket and camera",{"$nulls":4},0]
[32,"Remove ceiling tile mounted camera and clean up associated hardware and cabling in that location.  ",{"$nulls":4},{"$f":"+E72+F72","v":0}]
[33,"Remove wall mount bracket and camera and clean up associated hardware and cabling in that location.  ",{"$nulls":4},0]
[34,"Replace existing ceiling tile mounted camera with a new ceiling tile mounted camera. ",{"$nulls":4},0]
[35,"Replace existing wall mount bracket and camera with a new wall mount bracket and camera. ",{"$nulls":4},0]
[36,"Install new ceiling grid mounted wireless access point.  ",{"$nulls":4},0]
[37,"Install new wall mount bracket and wireless access point",{"$nulls":4},0]
[38,"Replace existing ceiling grid mounted wireless access point with a new ceiling grid mounted wireless access point.  ",{"$nulls":4},0]
[39,"Replace existing wall mount bracket and wireless access point with a new wall mount bracket and wireless access point.  ",{"$nulls":4},0]
[40,"Remove ceiling tile mounted speaker and clean up associated hardware and cabling in that location.  ",{"$nulls":4},0]
[41,"Remove wall mounted speaker and clean up associated hardware and cabling in that location",{"$nulls":4},0]
[42,"Install new ceiling grid drop-in Atlas DT-12 or equivalent speaker.  ",{"$nulls":4},0]
[43,"Install new wall mounted speaker (district provided part number). ",{"$nulls":4},0]
[44,"Replace existing ceiling grid speaker with a new ceiling grid drop-in Atlas D512 or equivalent speaker. ",{"$nulls":4},0]
[45,"Replace existing wall mounted speaker with a new wall mounted speaker (district provided part number). ",{"$nulls":4},0]
[null,"Q.\tProvide labor and material costs for the below scenarios (materials partially provided by HCS Technology)\n1.\tAssume TVs, interactive panels, and associated mounting brackets are delivered to site by HCS Technology. \n2.\tContractor is responsible for providing mounting anchors and associated hardware\n3.\tItems # 40-45, contractor is responsible for providing required LD10/LD5 raceway, boxes, and fittings (installed with appropriate mounting anchors), interactive panel calibration and focusing.\n4.\tContractor is responsible for disposal of all trash."]
[46,"Mount TV & Bracket on wall.",{"$nulls":4},0]
[47,"Mobile cart and TV assemble.",{"$nulls":4},0]
[48,"Relocation of TV.",{"$nulls":4},0]
[49,"Installation of interactive panel on wall. ",{"$nulls":4},0]
[50,"Mobile cart and interactive panel assemble. ",{"$nulls":4},0]
[51,"Relocation of interactive panel.",{"$nulls":4},0]
[null,"Total Non Eligible Erate",{"$nulls":4},{"$f":"SUM(G70:G92)","v":0}]